[Event "34th Cannes Open 2020"]
[Site "Cannes"]
[Date "2020.02.19"]
[Round "4.5"]
[White "Siva Mahadevan"]
[Black "Godena, Michele"]
[Result "1/2-1/2"]
[ECO "C64"]
[WhiteElo "2310"]
[BlackElo "2440"]
[Annotator "NA"]
[PlyCount "34"]
[EventDate "2020.02.17"]
[EventType "swiss"]
[EventCountry "FRA"]
[SourceTitle "playchess.com"]
[Source "ChessBase"]
[SourceQuality "1"]
[TimeControl "40/5400+30:1800+30"]

1. e4 {[%emt 0:00:48]} e5 {[%emt 0:00:00]} 2. Nf3 {[%emt 0:00:07]} Nc6 {[%emt 0:00:00]} 3. Bb5 {[%emt 0:00:04]} Bc5 {[%emt 0:04:55]} 4. c3 {[%emt 0:01:06]} Nf6 {[%emt 0:00:20]} 5. d4 exd4 {[%emt 0:00:23]} 6. e5 {[%emt 0:00:51]} Nd5 {[%emt 0:02:43]} 7. O-O {[%emt 0:00:10]} Be7 {[%emt 0:02:11]} 8. Nxd4 {[%emt 0:11:10]} O-O {[%emt 0:03:04]} 9. Nf5 {[%emt 0:00:49]} d6 {[%emt 0:02:16]} 10. Nxe7+ {[%emt 0:13:29]} Ncxe7 {[%emt 0:01:10]} 11. exd6 {[%emt 0:08:18]} Qxd6 {[%emt 0:00:29]} 12. c4 {[%emt 0:01:16]} a6 {[%emt 0:15:32]} 13. Ba4 {[%emt 0:00:24]} Nb6 {[%emt 0:00:11]} 14. Qxd6 {[%emt 0:01:26]} cxd6 {[%emt 0:00:47]} 15. Bb3 {[%emt 0:00:08]} Be6 {[%emt 0:03:07]} 16. Na3 {[%emt 0:00:33]} Rfc8 {[%emt 0:22:53]} 17. Bf4 {[%emt 0:03:41]} Nxc4 {[%emt 0:03:55]} 1/2-1/2

[Event "34th Cannes Open 2020"]
[Site "Cannes"]
[Date "2020.02.19"]
[Round "4.6"]
[White "Rademakers, Evert"]
[Black "Joie, Sebastien"]
[Result "0-1"]
[ECO "D79"]
[WhiteElo "2280"]
[BlackElo "2421"]
[Annotator "NA"]
[PlyCount "80"]
[EventDate "2020.02.17"]
[EventType "swiss"]
[EventCountry "FRA"]
[SourceTitle "playchess.com"]
[Source "ChessBase"]
[SourceQuality "1"]
[TimeControl "40/5400+30:1800+30"]

1. d4 {[%emt 0:00:00]} d5 {[%emt 0:00:00]} 2. c4 {[%emt 0:00:00]} c6 {[%emt 0:00:00]} 3. Nf3 {[%emt 0:00:00]} Nf6 {[%emt 0:00:08]} 4. g3 {[%emt 0:00:00]} g6 {[%emt 0:05:28]} 5. Bg2 {[%emt 0:01:30]} Bg7 {[%emt 0:00:02]} 6. cxd5 {[%emt 0:01:42]} cxd5 {[%emt 0:00:03]} 7. O-O {[%emt 0:00:42]} O-O {[%emt 0:00:48]} 8. Nc3 {[%emt 0:00:01]} Ne4 {[%emt 0:00:10]} 9. Nxe4 {[%emt 0:06:49]} dxe4 {[%emt 0:00:03]} 10. Ne5 {[%emt 0:00:16]} Qb6 {[%emt 0:08:50]} 11. b3 {[%emt 0:07:55]} Nc6 {[%emt 0:08:21]} 12. Nxc6 {[%emt 0:02:12]} bxc6 {[%emt 0:08:24]} 13. Ba3 {[%emt 0:07:09]} Bxd4 {[%emt 0:04:55]} 14. Rc1 {[%emt 0:01:06]} Bf5 {[%emt 0:03:19]} 15. e3 {[%emt 0:03:48]} Bf6 {[%emt 0:04:19]} 16. Qc2 {[%emt 0:08:16]} Qa6 {[%emt 0:05:58]} 17. Bc5 {[%emt 0:03:39]} Rfd8 {[%emt 0:06:13]} 18. h3 {[%emt 0:06:35]} h5 {[%emt 0:00:33]} 19. Rfd1 {[%emt 0:11:32]} Rd3 {[%emt 0:09:22]} 20. Bf1 {[%emt 0:01:04]} Rad8 {[%emt 0:00:01]} 21. Kh2 {[%emt 0:05:19]} Qc8 {[%emt 0:07:58]} 22. Bxd3 {[%emt 0:08:18]} exd3 {[%emt 0:00:02]} 23. Qc4 {[%emt 0:00:30]} h4 {[%emt 0:08:46]} 24. g4 {[%emt 0:04:44]} d2 {[%emt 0:02:07]} 25. Rc2 {[%emt 0:00:40]} Bxc2 {[%emt 0:03:53]} 26. Qxc2 {[%emt 0:00:39]} Qd7 {[%emt 0:03:34]} 27. Bb4 {[%emt 0:03:26]} Qc7+ {[%emt 0:00:01]} 28. Kg2 {[%emt 0:06:08]} a5 {[%emt 0:00:02]} 29. Bxd2 {[%emt 0:03:54]} Qd6 {[%emt 0:00:28]} 30. Kf3 {[%emt 0:00:55]} Qh2 {[%emt 0:01:35]} 31. Ke2 {[%emt 0:00:37]} Qxh3 {[%emt 0:02:33]} 32. Qe4 {[%emt 0:00:14]} Qh2 {[%emt 0:00:02]} 33. Qxc6 {[%emt 0:00:22]} Qe5 {[%emt 0:02:46]} 34. f4 {[%emt 0:05:11]} Qb2 {[%emt 0:01:18]} 35. g5 {[%emt 0:00:06]} Bg7 {[%emt 0:00:13]} 36. Qc7 {[%emt 0:00:16]} Rd5 {[%emt 0:00:47]} 37. Qc8+ {[%emt 0:02:00]} Kh7 {[%emt 0:04:34]} 38. Qg4 {[%emt 0:00:01]} Bc3 {[%emt 0:00:23]} 39. Qxh4+ Kg8 {[%emt 0:00:09]} 40. Qe1 {[%emt 0:01:28]} Qc2 {[%emt 0:00:15]} 0-1

[Event "34th Cannes Open 2020"]
[Site "Cannes"]
[Date "2020.02.20"]
[Round "6.2"]
[White "Gukesh D"]
[Black "Degraeve, Remy"]
[Result "1-0"]
[ECO "A06"]
[WhiteElo "2542"]
[BlackElo "2292"]
[Annotator "RC"]
[PlyCount "53"]
[EventDate "2020.02.17"]
[EventType "swiss"]
[EventCountry "FRA"]
[SourceTitle "playchess.com"]
[Source "ChessBase"]
[SourceQuality "1"]
[TimeControl "40/5400+30:1800+30"]

1. Nf3 {[%emt 0:00:04]} d5 {[%emt 0:00:00]} 2. g3 {[%emt 0:00:22]} Nf6 {[%emt 0:00:04]} 3. Bg2 {[%emt 0:00:05]} g6 {[%emt 0:00:46]} 4. c4 {[%emt 0:01:05]} Bg7 {[%emt 0:00:19]} 5. cxd5 {[%emt 0:01:29]} Nxd5 {[%emt 0:00:05]} 6. Nc3 {[%emt 0:00:09]} Nb6 {[%emt 0:00:48]} 7. O-O {[%emt 0:03:43]} O-O {[%emt 0:00:16]} 8. d3 {[%emt 0:00:41]} Nc6 {[%emt 0:01:07]} 9. Be3 {[%emt 0:00:23]} e5 {[%emt 0:02:02]} 10. Ne4 {[%emt 0:07:13]} h6 {[%emt 0:06:53]} 11. Rc1 {[%emt 0:02:38]} Nd4 {[%emt 0:04:05]} 12. Nxd4 {[%emt 0:11:31]} exd4 {[%emt 0:02:10]} 13. Bd2 {[%emt 0:00:19]} Rb8 {[%emt 0:09:29]} 14. Nc5 {[%emt 0:05:57]} Nd5 {[%emt 0:04:28]} 15. Qb3 {[%emt 0:03:38]} Ne7 {[%emt 0:01:03]} 16. Qa3 {[%emt 0:15:47]} a5 {[%emt 0:01:18]} 17. Qxa5 {[%emt 0:01:06]} c6 {[%emt 0:07:20]} 18. Qa7 {[%emt 0:05:34]} Bg4 {[%emt 0:01:09]} 19. h3 {[%emt 0:04:19]} Bf5 {[%emt 0:11:57]} 20. Bf4 {[%emt 0:05:24]} Ra8 {[%emt 0:00:19]} 21. Qxb7 {[%emt 0:00:06]} Rxa2 {[%emt 0:01:07]} 22. Bc7 {[%emt 0:04:01]} Qc8 {[%emt 0:02:13]} 23. Bd6 {[%emt 0:00:09]} Qxb7 {[%emt 0:02:06]} 24. Nxb7 {[%emt 0:00:01]} Rxb2 {[%emt 0:02:59]} 25. Bxe7 {[%emt 0:00:15]} Re8 {[%emt 0:00:02]} 26. Bd6 {[%emt 0:00:56]} Rxb7 {[%emt 0:01:50]} 27. Bxc6 {[%emt 0:00:06]} 1-0

[Event "34th Cannes Open 2020"]
[Site "Cannes"]
[Date "2020.02.22"]
[Round "8.6"]
[White "Maurizzi, Marc Andria"]
[Black "Rakotomaharo, Fy Antenaina"]
[Result "1/2-1/2"]
[ECO "C77"]
[WhiteElo "2432"]
[BlackElo "2430"]
[Annotator "ChessBase"]
[PlyCount "94"]
[EventDate "2020.02.17"]
[EventType "swiss"]
[EventCountry "FRA"]
[SourceTitle "playchess.com"]
[Source "ChessBase"]
[SourceQuality "1"]
[TimeControl "40/5400+30:1800+30"]

1. e4 {[%emt 0:00:00]} e5 {[%emt 0:04:07]} 2. Nf3 {[%emt 0:00:00]} Nc6 {[%emt 0:00:04]} 3. Bb5 {[%emt 0:00:00]} a6 {[%emt 0:00:05]} 4. Ba4 {[%emt 0:00:00]} Nf6 {[%emt 0:00:05]} 5. Nc3 {[%emt 0:00:03]} b5 {[%emt 0:08:53]} 6. Bb3 {[%emt 0:00:01]} Be7 {[%emt 0:00:06]} 7. a4 {[%emt 0:00:14]} b4 {[%emt 0:01:54]} 8. Nd5 {[%emt 0:00:01]} O-O {[%emt 0:00:10]} 9. Nxf6+ {[%emt 0:00:03]} Bxf6 {[%emt 0:00:05]} 10. Bd5 {[%emt 0:00:02]} Rb8 {[%emt 0:00:58]} 11. Bxc6 {[%emt 0:02:03]} dxc6 {[%emt 0:00:05]} 12. b3 {[%emt 0:08:03]} Bg4 {[%emt 0:16:05]} 13. Bb2 {[%emt 0:16:49]} Bg5 {[%emt 0:01:04]} 14. d3 {[%emt 0:00:50]} f5 {[%emt 0:02:43]} 15. Qe2 {[%emt 0:31:37]} fxe4 {[%emt 0:01:27]} 16. Qxe4 {[%emt 0:00:05]} Bxf3 {[%emt 0:00:08]} 17. gxf3 {[%emt 0:00:01]} Bf4 {[%emt 0:00:21]} 18. Ke2 {[%emt 0:06:01]} Qd6 {[%emt 0:20:48]} 19. Rag1 {[%emt 0:04:02]} Rf6 {[%emt 0:01:57]} 20. Rg4 {[%emt 0:02:12]} Rg6 {[%emt 0:00:29]} 21. Rhg1 {[%emt 0:02:08]} Rxg4 {[%emt 0:00:07]} 22. Rxg4 {[%emt 0:00:04]} Rf8 {[%emt 0:09:18]} 23. Qc4+ {[%emt 0:07:55]} Qd5 {[%emt 0:05:45]} 24. Qxb4 {[%emt 0:02:15]} Bxh2 {[%emt 0:03:44]} 25. Re4 {[%emt 0:02:03]} Bf4 {[%emt 0:09:17]} 26. Qb7 {[%emt 0:02:02]} Qa5 {[%emt 0:04:47]} 27. Qxc6 {[%emt 0:02:53]} Qd2+ {[%emt 0:00:13]} 28. Kf1 {[%emt 0:00:00]} Rf6 {[%emt 0:07:11]} 29. Qd5+ {[%emt 0:01:59]} Kf8 {[%emt 0:00:20]} 30. Ba3+ {[%emt 0:00:21]} Ke8 {[%emt 0:00:03]} 31. Qg8+ {[%emt 0:00:14]} Kd7 {[%emt 0:00:06]} 32. Qxg7+ {[%emt 0:00:04]} Ke6 {[%emt 0:00:11]} 33. Qg8+ {[%emt 0:01:34]} Kd7 {[%emt 0:02:15]} 34. Qxh7+ {[%emt 0:00:22]} Ke6 {[%emt 0:00:05]} 35. Qe7+ {[%emt 0:02:25]} Kf5 {[%emt 0:00:07]} 36. Qd7+ {[%emt 0:00:26]} Kg6 {[%emt 0:01:19]} 37. Qg4+ {[%emt 0:06:51]} Kh7 {[%emt 0:00:03]} 38. Be7 {[%emt 0:02:32]} Rh6 {[%emt 0:01:40]} 39. Bh4 {[%emt 0:00:35]} Qd1+ {[%emt 0:00:24]} 40. Re1 {[%emt 0:00:02]} Qxc2 {[%emt 0:00:05]} 41. Qd7+ {[%emt 0:30:35]} Kg8 {[%emt 0:02:58]} 42. b4 {[%emt 0:00:00]} Rd6 {[%emt 0:00:48]} 43. Qe8+ {[%emt 0:00:00]} Kg7 {[%emt 0:00:16]} 44. Qe7+ {[%emt 0:00:00]} Kg8 {[%emt 0:01:00]} 45. Qe8+ {[%emt 0:00:00]} Kg7 {[%emt 0:00:05]} 46. Qe7+ {[%emt 0:00:00]} Kg8 {[%emt 0:00:03]} 47. Qe8+ {[%emt 0:00:00]} Kg7 {[%emt 0:00:06]} 1/2-1/2

[Event "34th Cannes Open 2020"]
[Site "Cannes"]
[Date "2020.02.23"]
[Round "9.5"]
[White "Godena, Michele"]
[Black "Arman, Deniz"]
[Result "1-0"]
[ECO "B06"]
[WhiteElo "2440"]
[BlackElo "2318"]
[Annotator "NA"]
[PlyCount "109"]
[EventDate "2020.02.17"]
[EventType "swiss"]
[EventCountry "FRA"]
[SourceTitle "playchess.com"]
[Source "ChessBase"]
[SourceQuality "1"]
[TimeControl "40/5400+30:1800+30"]

1. e4 {[%emt 0:00:00]} g6 {[%emt 0:00:00]} 2. d4 {[%emt 0:00:00]} Bg7 {[%emt 0:00:00]} 3. c3 {[%emt 0:02:52]} c5 {[%emt 0:00:26]} 4. dxc5 {[%emt 0:03:11]} Qc7 {[%emt 0:00:37]} 5. Be3 {[%emt 0:00:37]} Na6 {[%emt 0:00:18]} 6. Bxa6 {[%emt 0:14:12] B06: Modern Defence.} bxa6 {[%emt 0:00:29]} 7. Ne2 {[%emt 0:00:25]} Nf6 {[%emt 0:01:45]} 8. f3 {[%emt 0:00:21]} O-O {[%emt 0:00:33]} 9. O-O {[%emt 0:01:01]} a5 {[%emt 0:00:25]} 10. Nd2 {[%emt 0:04:36]} Ba6 {[%emt 0:04:04]} 11. c4 {[%emt 0:14:06] [#]} Rfb8 $146 {[%emt 0:19:42]} ({Predecessor:} 11... d6 12. cxd6 Qxd6 13. Qc2 Rfd8 14. Rfc1 Rac8 15. b3 Nd7 16. Rab1 Nc5 17. Rd1 Qc7 {1-0 (43) Smagin,S (2550)-Stanojoski,Z (2375) Prilep 1992}) 12. Rb1 {[%emt 0:00:49]} Ne8 {[%emt 0:00:54]} 13. b3 {[%emt 0:05:14]} e6 {[%emt 0:05:00]} 14. a3 {[%emt 0:01:54]} Bf8 {[%emt 0:10:36]} 15. b4 {[%emt 0:01:33]} axb4 {[%emt 0:01:18]} 16. axb4 {[%emt 0:00:05]} Bc8 {[%emt 0:00:02]} 17. Nd4 {[%emt 0:23:19]} (17. Qe1 $16) 17... a5 {[%emt 0:05:48]} 18. Nb5 {[%emt 0:01:24]} Qe5 {[%emt 0:06:24] [#]} ({Black should try} 18... Qc6 $14) 19. f4 $1 {[%emt 0:02:41]} Qg7 {[%emt 0:01:13]} (19... Qh5 $16 {might work better.}) 20. Bd4 {[%emt 0:05:57]} f6 $18 {[%emt 0:01:01]} 21. e5 {[%emt 0:00:15]} Be7 {[%emt 0:10:29]} 22. Ne4 {[%emt 0:01:47]} Qf8 {[%emt 0:11:22]} 23. bxa5 {[%emt 0:07:54]} Rxa5 {[%emt 0:12:15]} 24. Nbd6 {[%emt 0:00:45]} Bxd6 {[%emt 0:00:21]} 25. cxd6 {[%emt 0:00:26]} Rba8 {[%emt 0:03:43]} 26. exf6 {[%emt 0:01:15]} Ba6 {[%emt 0:02:53]} 27. Rb4 {[%emt 0:03:29]} Rc8 {[%emt 0:00:18]} 28. c5 {[%emt 0:02:03]} Ra3 {[%emt 0:01:21]} 29. Rf3 {[%emt 0:00:48]} Ra2 {[%emt 0:00:04]} 30. Qb1 {[%emt 0:01:15]} Re2 {[%emt 0:00:06]} 31. Ra3 {[%emt 0:00:32]} Ra8 {[%emt 0:00:58]} 32. Ng5 {[%emt 0:00:27]} Nxf6 {[%emt 0:00:19]} 33. Bxf6 {[%emt 0:00:05]} Qxf6 {[%emt 0:00:29]} 34. Qa1 {[%emt 0:00:45]} Qf5 {[%emt 0:00:28]} 35. Rxa6 {[%emt 0:00:32]} Qxc5+ {[%emt 0:00:16]} 36. Kh1 {[%emt 0:00:10]} Rc8 {[%emt 0:00:37]} 37. Rb1 {[%emt 0:00:31]} Qf2 {[%emt 0:00:17]} 38. Rg1 {[%emt 0:00:27]} Qxf4 {[%emt 0:00:09]} 39. Ra8 {[%emt 0:00:59]} Rec2 {[%emt 0:00:45]} 40. Rxc8+ {[%emt 0:00:44]} Rxc8 {[%emt 0:00:05]} 41. Qa6 {[%emt 0:06:00]} Rc5 {[%emt 0:07:54]} 42. Qa8+ {[%emt 0:05:11]} Qf8 {[%emt 0:00:05]} 43. Qxf8+ {[%emt 0:00:20]} Kxf8 {[%emt 0:00:03]} 44. Rf1+ {[%emt 0:00:20]} Kg7 {[%emt 0:00:20]} 45. Ne4 {[%emt 0:03:28]} Rd5 {[%emt 0:00:27]} 46. Nf6 {[%emt 0:00:43]} Rd4 {[%emt 0:01:00]} 47. g4 {[%emt 0:03:48]} g5 {[%emt 0:02:21]} 48. h3 {[%emt 0:01:09]} Rd3 {[%emt 0:00:08]} 49. Ne8+ {[%emt 0:01:33]} Kg8 {[%emt 0:00:09]} 50. Kg2 {[%emt 0:00:41]} h6 {[%emt 0:00:49]} 51. Rf3 {[%emt 0:02:28]} Rd1 {[%emt 0:00:12]} 52. Kf2 {[%emt 0:00:37]} Ra1 {[%emt 0:01:20]} 53. Nf6+ {[%emt 0:00:32]} Kg7 {[%emt 0:00:08]} 54. Nxd7 {[%emt 0:00:30]} Rd1 {[%emt 0:00:09]} 55. Nf6 {[%emt 0:00:14]} 1-0

[Event "34th Cannes Open 2020"]
[Site "Cannes"]
[Date "2020.02.23"]
[Round "9.6"]
[White "Rakotomaharo, Fy Antenaina"]
[Black "Siva Mahadevan"]
[Result "1/2-1/2"]
[ECO "D85"]
[WhiteElo "2430"]
[BlackElo "2310"]
[Annotator "NA"]
[PlyCount "152"]
[EventDate "2020.02.17"]
[EventType "swiss"]
[EventCountry "FRA"]
[SourceTitle "playchess.com"]
[Source "ChessBase"]
[SourceQuality "1"]
[TimeControl "40/5400+30:1800+30"]

1. d4 {[%emt 0:00:00]} Nf6 {[%emt 0:13:59]} 2. c4 {[%emt 0:00:04]} g6 {[%emt 0:00:07]} 3. Nc3 {[%emt 0:00:28]} d5 {[%emt 0:00:16]} 4. cxd5 {[%emt 0:00:31]} Nxd5 {[%emt 0:00:07]} 5. e4 {[%emt 0:00:05]} Nxc3 {[%emt 0:00:06]} 6. bxc3 {[%emt 0:00:04]} Bg7 {[%emt 0:00:07]} 7. Bg5 {[%emt 0:00:25] D85: Exchange Grünfeld: Unusual White 7th moves and lines with 7 Nf3.} c5 {[%emt 0:02:29]} 8. Rc1 {[%emt 0:00:09]} O-O {[%emt 0:10:15]} 9. Nf3 {[%emt 0:01:33]} Bg4 {[%emt 0:02:55]} 10. d5 {[%emt 0:00:09]} Qd6 {[%emt 0:03:15]} 11. Be2 {[%emt 0:00:45]} Nd7 {[%emt 0:05:46]} 12. Nd2 {[%emt 0:00:51]} Bxe2 {[%emt 0:00:16]} 13. Qxe2 {[%emt 0:00:04]} e6 {[%emt 0:02:44]} 14. Nc4 {[%emt 0:09:25]} Qa6 {[%emt 0:00:39] [#]} 15. Be7 $146 {[%emt 0:00:09]} ({Predecessor:} 15. Ne3 b5 16. O-O c4 17. f4 Rae8 18. Qf3 f6 19. Bh4 Nc5 20. Rce1 Nd3 21. Re2 {1-0 (47) Harsha,B (2481)-Melkumyan,H (2660) Caleta 2019}) 15... Rfe8 {[%emt 0:13:23]} 16. d6 {[%emt 0:00:05]} b5 {[%emt 0:01:51]} 17. Ne3 {[%emt 0:05:37]} Bf8 {[%emt 0:11:27]} 18. Bxf8 {[%emt 0:17:34]} Rxf8 {[%emt 0:07:45]} 19. Rd1 {[%emt 0:00:12]} Rad8 {[%emt 0:00:41]} 20. O-O {[%emt 0:15:53]} Qc6 {[%emt 0:01:26]} 21. a4 {[%emt 0:02:49]} a6 {[%emt 0:08:50]} (21... bxa4 $17 22. Nc4 Rb8) 22. f3 {[%emt 0:00:17]} c4 {[%emt 0:01:19]} 23. Ng4 {[%emt 0:04:39]} h5 {[%emt 0:01:55]} 24. Nf2 {[%emt 0:00:05]} e5 $11 {[%emt 0:00:50]} 25. Rd2 {[%emt 0:11:26]} Nf6 {[%emt 0:02:21]} 26. axb5 {[%emt 0:02:09]} axb5 {[%emt 0:00:01]} 27. Rfd1 {[%emt 0:00:05]} Rfe8 {[%emt 0:04:03]} 28. Qe3 {[%emt 0:09:39]} Re6 {[%emt 0:00:33]} 29. Qg5 {[%emt 0:00:07]} Rd7 {[%emt 0:02:15]} 30. Rd5 {[%emt 0:02:07]} Qb6 {[%emt 0:00:36]} 31. Rxe5 {[%emt 0:03:20]} Rexd6 {[%emt 0:00:05]} 32. Rf1 {[%emt 0:00:20]} Rb7 {[%emt 0:02:07]} 33. Rb1 {[%emt 0:05:21]} Rbd7 {[%emt 0:00:18]} 34. Rf1 {[%emt 0:02:01]} Rb7 {[%emt 0:00:14]} 35. h4 {[%emt 0:05:56]} b4 {[%emt 0:01:18]} 36. cxb4 {[%emt 0:00:08]} Qxb4 {[%emt 0:00:22]} 37. Rc5 {[%emt 0:00:06]} c3 {[%emt 0:01:08]} 38. Rc8+ {[%emt 0:01:57]} Kg7 {[%emt 0:00:12]} 39. e5 {[%emt 0:00:39]} Nh7 {[%emt 0:00:21]} 40. Qe3 {[%emt 0:00:43]} Rd2 {[%emt 0:01:05]} 41. Ne4 {[%emt 0:03:44]} Qd4 {[%emt 0:07:03]} 42. Rxc3 {[%emt 0:05:17]} Qxe3+ {[%emt 0:03:07]} 43. Rxe3 {[%emt 0:00:03]} Rc2 {[%emt 0:02:08]} 44. Rf2 {[%emt 0:01:09]} Rc1+ {[%emt 0:03:24]} 45. Kh2 {[%emt 0:00:05]} Nf8 {[%emt 0:00:46]} 46. Nd6 {[%emt 0:06:43]} Rb4 {[%emt 0:00:52]} 47. Ra2 {[%emt 0:02:41]} Rxh4+ {[%emt 0:08:02]} 48. Kg3 {[%emt 0:00:04]} Rd4 {[%emt 0:01:27]} 49. Ra7 {[%emt 0:04:22]} h4+ {[%emt 0:00:10]} 50. Kf2 {[%emt 0:09:48]} Rc2+ {[%emt 0:00:51]} 51. Re2 {[%emt 0:00:14]} Rxe2+ {[%emt 0:00:13]} 52. Kxe2 {[%emt 0:00:52]} Rf4 {[%emt 0:00:53]} 53. Ke3 {[%emt 0:00:08]} Ne6 {[%emt 0:02:24]} 54. Re7 {[%emt 0:02:00]} g5 {[%emt 0:00:08]} 55. Nxf7 {[%emt 0:00:39]} Kf8 {[%emt 0:02:19]} 56. Rxe6 {[%emt 0:00:59]} Kxf7 {[%emt 0:00:05]} 57. Rd6 {[%emt 0:00:23]} Ra4 {[%emt 0:00:28]} 58. Rf6+ {[%emt 0:00:56]} Kg7 {[%emt 0:00:37]} 59. Rf5 {[%emt 0:00:14]} Kg6 {[%emt 0:00:07]} 60. Rf8 {[%emt 0:00:03]} Kg7 {[%emt 0:00:24]} 61. Rd8 {[%emt 0:00:08]} Kf7 {[%emt 0:01:21]} 62. Rd4 {[%emt 0:01:47]} Ra3+ {[%emt 0:00:10]} 63. Ke4 {[%emt 0:00:28]} Ra2 {[%emt 0:00:52]} 64. Kf5 {[%emt 0:00:33]} Rxg2 {[%emt 0:01:17]} 65. Rd7+ {[%emt 0:00:18]} Ke8 {[%emt 0:00:10]} 66. Ke6 {[%emt 0:00:46]} Rf2 {[%emt 0:03:19]} 67. Rg7 {[%emt 0:00:23]} Rxf3 {[%emt 0:00:33]} 68. Rg8+ {[%emt 0:00:41]} Rf8 {[%emt 0:00:01]} 69. Rxg5 {[%emt 0:00:04]} Rh8 {[%emt 0:00:28]} 70. Kd6 {[%emt 0:00:18]} h3 {[%emt 0:00:17]} 71. e6 {[%emt 0:00:47]} h2 {[%emt 0:00:16]} 72. Rb5 {[%emt 0:00:07]} Kf8 {[%emt 0:00:05]} 73. Rb8+ {[%emt 0:01:09]} Kg7 {[%emt 0:00:01]} 74. Rxh8 {[%emt 0:00:04]} Kxh8 {[%emt 0:00:04]} 75. e7 {[%emt 0:00:02]} h1=Q 76. e8=Q+ {[%emt 0:00:06]} Kg7 {[%emt 0:00:17]} 1/2-1/2